Cogmind - Beta 14 --- EXPLORER MODE // 2024.09.16 @ 12:03:06 Player: SleepyBill Result: Core destroyed Performance ------------- Evolutions (0) 0 Regions Visited (1) 200 Robots Destroyed (18) 90 Value Destroyed (508) 508 Prototype IDs (0) 0 Alien Tech Used (0) 0 Bonus (0) 0 TOTAL SCORE: 798 Bonus ------- None Cogmind --------- Core Integrity 0/250 Matter 226/300 Energy 49/125 System Corruption 0% Temperature Critical (854) Movement Core (200) Ox3 Location -10/Materials Parts ------- > --- POWER (1) -------- Light Ion Engine > --- PROPULSION (2) --- Aluminum Leg Aluminum Leg > --- UTILITY (2) ------ Targeting Computer > --- WEAPON (3) ------- Medium Laser Medium Laser Beam Cannon > --- INVENTORY (5) ---- Light Ion Engine Aluminum Leg Medium Laser Beam Cannon Peak State ------------ > --- POWER ------------ Light Ion Engine > --- PROPULSION ------- Aluminum Leg Aluminum Leg > --- UTILITY ---------- Targeting Computer Light Armor Plating > --- WEAPON ----------- Medium Laser Medium Laser Medium Laser > --- INVENTORY -------- (None) [Rating: 8] Favorites ----------- Power Light Ion Engine Engine Light Ion Engine Propulsion Aluminum Leg Leg Aluminum Leg Utility Targeting Computer Processor Targeting Computer Protection Light Armor Plating Weapon Medium Laser Energy Gun Medium Laser Energy Cannon Beam Cannon Build | -11 -10 ------- Run | Yrd Mat Slots Evolved 1 | . 1 Power . | . . Propulsion . | . . Utility . | . . Weapon 1 | . 1 Parts Attached 13 | 7 6 Power 2 | 1 1 Engine 2 | 1 1 Core . | . . Reactor . | . . Propulsion 3 | 2 1 Treads . | . . Leg 3 | 2 1 Wheel . | . . Hover . | . . Flight . | . . Utility 3 | 2 1 Device . | . . Storage . | . . Processor 1 | 1 . Hackware . | . . Protection 2 | 1 1 Artifact . | . . Weapon 5 | 2 3 Energy Gun 4 | 2 2 Energy Cannon 1 | . 1 Ballistic Gun . | . . Ballistic Cannon . | . . Launcher . | . . Special Weapon . | . . Impact Weapon . | . . Slashing Weapon . | . . Piercing Weapon . | . . Special Melee Weapon . | . . Unidentified Prototypes . | . . Parts Lost 3 | . 3 Power 1 | . 1 Propulsion . | . . Utility 2 | . 2 Weapon . | . . Highest Loss Streak 1 | . 1 To Critical Strikes . | . . Average Slot Usage (%) 94 | . 94 Engine 10 | . 10 Leg 25 | . 25 Processor 12 | . 12 Protection 9 | . 9 Energy Gun 26 | . 26 Energy Cannon 10 | . 10 Peak Build Rating 8 | 7 8 Average Rating 7 | 5 7 On Entrance 3 | . 7 Naked Turns . | . . Heaviest Build 13 | 10 13 Greatest Support 20 | 20 20 Greatest Overweight (x) 3 | . 3 Average Overweight (x) . | . . Largest Inventory Capacity 5 | 5 5 Average Capacity 5 | 5 5 Most Carried 5 | 5 5 Average Carried 2 | . 2 Final Capacity 5 | 5 5 Final Carried 4 | . 4 Class Distribution -------------------- 83% | Hacker-Gunner 16% | Hacker-Mutant Dominant Class ---------------- Hacker-Gunner | -10/Materials Resources | -11 -10 ----------- Run | Yrd Mat Matter Collected 439 | 114 325 Remotely . | . . Salvage Created 582 | . 582 Parts 35 | . 35 Haulers Intercepted . | . . Recyclers Shooed . | . . Parts Field Recycled . | . . Retrieved Matter . | . . Parts Self-Destructed . | . . Prevented . | . . Kills | -11 -10 ------- Run | Yrd Mat Combat Hostiles Destroyed 15 | . 15 Guns 9 | . 9 Cannons 5 | . 5 Classes Destroyed 3 | . 3 Watcher 3 | . 3 Swarmer 4 | . 4 Grunt 11 | . 11 Best Kill Streak 3 | . 3 Combat Bots Only 3 | . 3 Max Kills in Single Turn 1 | . 1 Gunslinging . | . . Exploded . | . . Melee . | . . Uniques/NPCs Destroyed . | . . Combat | -11 -10 -------- Run | Yrd Mat Hostile Shots Fired 94 | . 94 Missed 18 | . 18 Damage Taken 699 | . 699 Core 266 | . 266 Absorbed by Shields . | . . Ignored by Resistances 331 | . 331 Core Remaining (%) 100 | 100 . Volleys Fired 36 | . 36 Largest 3 | . 3 Hottest 160 | . 160 Shots Fired 98 | . 98 Gun 67 | . 67 Cannon 31 | . 31 Launcher . | . . Special . | . . Kinetic . | . . Thermal 98 | . 98 Explosive . | . . Electromagnetic . | . . Robot Hit Streak 15 | . 15 Robot Miss Streak 2 | . 2 Penetration Max . | . . Secondary Targets 1 | . 1 Max Gunslinging Chain 1 | . 1 Shots Hit Robots 69 | . 69 Core Hits 28 | . 28 Critical Kills . | . . Critical Parts Destroyed . | . . Critical Strikes 4 | . 4 Burn 4 | . 4 Melee Attacks . | . . Impact . | . . Slashing . | . . Piercing . | . . Sneak Attacks . | . . Combat Hostiles . | . . Follow-up Attacks . | . . Damage Inflicted 961 | . 961 Guns 629 | . 629 Cannons 332 | . 332 Explosions . | . . Melee . | . . Ramming . | . . Kinetic . | . . Thermal 961 | . 961 Explosive . | . . Electromagnetic . | . . Impact . | . . Slashing . | . . Piercing . | . . Highest Corruption . | . . Average Corruption . | . . Corruption Purged . | . . Corruption Blocked . | . . Overload Shots . | . . Overflow Damage . | . . Projectiles . | . . Explosions . | . . Melee . | . . Knockbacks . | . . Impact . | . . Kinetic . | . . Secondary . | . . Self-Inflicted Damage . | . . Shots . | . . Rammed . | . . Targets Rammed . | . . Kicked . | . . Crushed . | . . Highest Temperature 904 | . 904 Average Temperature 313 | . 313 Received Heat Transfer 444 | . 444 Effects 44 | . 44 Shutdowns 5 | . 5 Energy Bleed 6 | . 6 Interference 6 | . 6 Matter Decay 5 | . 5 Short Circuit 4 | . 4 Damage (minor) 5 | . 5 Damage (major) 8 | . 8 Damage (core) 5 | . 5 Siege Activations . | . . Robots Corrupted . | . . Combat Hostiles . | . . Parts Fried . | . . Impact Corruptions . | . . Robots Melted 1 | . 1 Combat Hostiles 1 | . 1 Parts Melted 11 | . 11 Heat Transferred 2849 | . 2849 Parts Sabotaged . | . . Parts Stolen . | . . Parts Stripped . | . . Power Chain Reactions . | . . Alert | -11 -10 ------- Run | Yrd Mat Peak Influence 269 | . 269 Initial . | . . Average 67 | . 77 Maximum Alert Level 1 | . 1 Low Security (%) 91 | 100 89 Level 1 8 | . 10 Level 2 . | . . Level 3 . | . . Level 4 . | . . Level 5 . | . . High Security . | . . Max Security . | . . Squads Dispatched 4 | . 4 Investigation 4 | . 4 Extermination . | . . Reinforcement . | . . Assault . | . . Garrison . | . . Intercept . | . . Searches Triggered . | . . Construction Impeded . | . . Haulers Reinforced . | . . Active Scanning Responses . | . . Cargo Convoy Interrupts . | . . Stealth | -11 -10 --------- Run | Yrd Mat Distress Signals . | . . Communications Jammed . | . . Distress Signals . | . . Times Spotted 19 | . 19 Peak Tracking Total 4 | . 4 Tactical Retreats 1 | . 1 Traps | -11 -10 ------- Run | Yrd Mat Traps Triggered . | . . Indirectly . | . . Trap Hack Attempts . | . . Triggered . | . . Disarmed . | . . Reprogrammed . | . . Reused . | . . Traps Extracted . | . . Installed . | . . Triggered . | . . Machines | -11 -10 ---------- Run | Yrd Mat Machines Disabled 2 | . 2 Max in Single Turn 1 | . 1 Machines Repaired . | . . Machines Dismantled . | . . Machines Sabotaged . | . . Overloaded Fab Kills . | . . Hacking | -11 -10 --------- Run | Yrd Mat Machines Accessed 5 | . 5 Terminals 5 | . 5 Fabricators . | . . Repair Stations . | . . Recycling Units . | . . Scanalyzers . | . . Garrison Access . | . . Total Hacks 16 | . 16 Successful 10 | . 10 Failed 6 | . 6 Catastrophic . | . . Database Lockouts . | . . Manual . | . . Terminals 16 | . 16 Fabricators . | . . Repair Stations . | . . Recycling Units . | . . Scanalyzers . | . . Garrison Access . | . . Terminal Hacks 10 | . 10 Alert Level 1 | . 1 Unreport Threat 1 | . 1 Locate Traps 1 | . 1 Dispatch Records 2 | . 2 Investigation Status 1 | . 1 Recall Reinforcements 1 | . 1 Registered Components 1 | . 1 Zone Layout 2 | . 2 Fabricator Hacks . | . . Repair Station Hacks . | . . Recycling Unit Hacks . | . . Scanalyzer . | . . Garrison Access Hacks . | . . Unauthorized Hacks . | . . Terminals . | . . Fabricators . | . . Repair Stations . | . . Recycling Units . | . . Scanalyzers . | . . Garrison Access . | . . Data Cores Recovered . | . . Used . | . . Hacking Detections 4 | . 4 Full Trace Events 4 | . 4 Feedback Events . | . . Feedback Blocked . | . . Robot Schematics Acquired . | . . Robots Built . | . . Authchips . | . . Time . | . . Total Robot Build Rating . | . . Part Schematics Acquired . | . . Parts Built . | . . Authchips . | . . Time . | . . Total Part Build Rating . | . . Parts Repaired . | . . Time . | . . Parts Recycled . | . . Recycled Matter . | . . Retrieved Matter . | . . Retrieved Components . | . . Parts Scanalyzed . | . . Part Schematics Acquired . | . . Parts Damaged . | . . Bothacking | -11 -10 ------------ Run | Yrd Mat Used RIF Installer . | . . Robots Hacked . | . . Non-combat . | . . Combat . | . . Robot Hacks Applied . | . . Relay Couplers Released . | . . Fabnet Peak Effective % . | . . Robots Rewired . | . . Allies Hacked . | . . Hacks Repelled . | . . Allies | -11 -10 -------- Run | Yrd Mat Total Allies . | . . Largest Group . | . . Highest-Rated Group . | . . Highest-Rated Ally . | . . Total Orders . | . . Ally Attacks . | . . Total Damage . | . . Kills . | . . Allies Corrupted . | . . Allies Melted . | . . Intel | -11 -10 ------- Run | Yrd Mat Robot Analysis Total . | . . Derelict Logs Recovered . | . . Drone Launches . | . . Drone Recoveries . | . . Exploration | -11 -10 ------------- Run | Yrd Mat Turns Passed 700 | 92 608 Spaces Moved 469 | 71 398 Core 11 | 10 1 Treads . | . . Legs 458 | 61 397 Wheels . | . . Hover . | . . Flight . | . . Fastest Speed 50 | 50 120 Average Speed 118 | 110 120 Slowest Speed 200 | 120 200 Overloaded Moves . | . . Propulsion Burnouts . | . . Robots Hopped . | . . Cave-ins Triggered . | . . Exploration Rate (%) 29 | 5 53 Regions Visited 1 Branch Regions . Pre-discovered Areas . | . . Known Exits Taken 1 | 1 . Unknown Exits Taken . | . . Scrap Searched . | . . Spaces Dug . | . . Terrain Destroyed . | . . Melee . | . . Projectile . | . . AOE . | . . Terrain Rammed . | . . Walls Destroyed . | . . Machines Disabled . | . . Actions | -11 -10 --------- Run | Yrd Mat Total 533 | 84 449 Wait . | . . Move 468 | 70 398 Hop . | . . Pick Up 15 | 7 8 Fast Attach . | . . Attach 10 | 7 3 Detach . | . . Swap 3 | . 3 Drop 1 | . 1 Fire 36 | . 36 Melee . | . . Ram . | . . Kick . | . . Crush . | . . Escape Stasis . | . . Rewire . | . . Trap . | . . Miscellaneous . | . . Route ------- -11/Scrapyard -10/Materials (discovered 3 exits: *Mat x2 / *Min) History --------- Turn | Location | Event 27 | -11/Scrapyard | Identified exit to Materials 27 | -11/Scrapyard | Discovered exit to Materials (range 15) 93 | -11/Scrapyard | Entered Materials 93 | -10/Materials | Evolved 1 slot: Weapon x1 423 | -10/Materials | Build established: Hacker-Gunner 483 | -10/Materials | Identified exit to Materials 483 | -10/Materials | Discovered exit to Materials (range 3) 534 | -10/Materials | Identified exit to Mines 534 | -10/Materials | Discovered exit to Mines (range 15) 534 | -10/Materials | Discovered exit to Materials (range 17) 680 | -10/Materials | Core integrity fell below 50% 699 | -10/Materials | Core integrity fell below 20% 702 | -10/Materials | Core destroyed Last Messages --------------- G-34 Mercenary suffers critical hit (Burn). G-34 Mercenary destroyed. Terminal disabled. Lgt. Armor Plating destroyed. Overheating: Energy bleed (-13). Melted Aluminum Leg. Power failure, Lgt. Ion Engine shutdown. Overheating: System interference. Beam Cannon temporarily disabled. G-34 Mercenary overheating. G-34 Mercenary heat damages core (-3). G-34 Mercenary overheating. G-34 Mercenary heat short circuits Sml. Laser. G-34 Mercenary destroyed. Overheating: Core damaged (-25). Overheating: Broken Targeting Computer damaged (-1). Overheating: Lgt. Ion Engine damaged (-10). Overheating: Med. Laser damaged (-24). Overheating: Core damaged (-42). Map ----- +----------------------------------------------------+ | | | | | | | | | | | | | | | | | ?????????????????????????????????????????????????? | | ????????????????######???????????????????????????? | | ???????????????? #???????????????????????????? | | ???????????????? """ #???????????????????????????? | | ???????????????? """ #???????????????????????????? | | ???????????????? """ #???????######?????????#####? | | ???????????????? #???????# #????????##"""## | | ???????????????? #???????# "" #???????##"|||"# | | ????????????????############## T" #???????#"" "" | | ????????????????### # """ # "" #???????# | | ???????????????? # < # """ # #####???# > | | ???????????????? # # """ # # ##### | | ???????????????? + + # [!=#* + | | ???????????????? # # # %+[ ###### # | | ???????????????? # # # # #???### ## | | ???????????????? # ############# # ### # #? | | ????????????????### ## #? | | ???????????????? # *% @ t ## # ## | | ????????????????" # % ## # # | | ???????????????"" + "" """!% T #####?# # | | ???????????????"" # """ """ " ####### # | | ???????????????? # """ """ + | | ????????????????" # au ! # | | ????????????????" # r # | | ??????????????????# ########## ###### ######## | | ??????????????????# #????# #????#%#??????? | | ??????????????????? #????# #????#%#??????? | | ???????????????????? #????# ######+##?????? | | ???????????????????? #????# ## =* #?????? | | ???????????????????? #????# ## =[ #?????? | | ???????????????????? #????# ## #?????? | | ???????????????????? #####????# ## #?????? | | ???????????????????? #????????# ## #?????? | | ???????????????????? #???????## ## [% #?????? | | ???????????????????? #???????# ###/####?????? | | ??????????????????????????????# % = #?????? | | ??????????????????????????????# %[< #?????? | | ??????????????????????????????# #?????? | | ??????????????????????????????# ###+#####????? | | ??????????????????????????????##### # #????? | | ??????????????????????????????????# # """" #????? | | ???????#??????????????????????????# # """" ####?? | +----------------------------------------------------+ Best States ------------- Heat Dissipation 25 Energy Generation 10 Energy Capacity 125 Matter Stores 300 Matter Capacity 300 Sight Range 16 Terrain Scan Density 10 Armor Coverage 150 Resistance: KI 35 Resistance: TH 35 Resistance: EX 35 Resistance: EM 35 Resistance: I 35 Resistance: S 35 Resistance: P 35 Evasion (%) 55 Targeting Accuracy 5 Offensive Hacking 20 Item Schematics ----------------- None Robot Schematics ------------------ None Fabricated ------------ Nothing Alien Tech Used ----------------- None Achievements -------------- None Challenges ------------ None Game ------ Seed DimensionalAutogunGenerator Manual? 0 Play Time 00:10:06 Cumulative 2.7 hours Start 2024.09.16 @ 11:54:47 End 2024.09.16 @ 12:03:06 Sessions 1 Manual Loads 0 Difficulty Explorer Special Mode None Game No. 4 Rogue 0 Adventurer 0 Explorer 4 Win Type - Total 0 Types 0/0/0/0/0/0/0/0/0 Lore% 1 Gallery% 9 Achievement% 10 Wizard Run 0 Options --------- Layout 1 ASCII 0 Keyboard 0 Movement Arrows Keybinds 0 Fullscreen 2 Font 24/Smallcaps Map View 50x35 Zoom Use 0% Tactical HUD 0 Map Filters NONE Filters NONE Steam 1 RUN: dfb5f8ac-6136-4ba6-b8f9-899128a87a59